Cogmind - Beta 13 @@@ ROGUE MODE // 2024.03.10 @ 19:37:03 Player: Minty Result: Destroyed by X-57 Shotgunner with High-powered Shotgun Performance ------------- Evolutions (3) 1500 Regions Visited (6) 1200 Robots Destroyed (93) 465 Value Destroyed (3025) 3025 Prototype IDs (33) 660 Alien Tech Used (0) 0 Bonus (3302) 3302 TOTAL SCORE: 10152 Bonus ------- Triggered High Security 500 High Alert Combat Kills 789 Follower Combat Kills 1800 Aligned with FarCom 300 Friendly Fire -87 Cogmind --------- Core Integrity 0/700 Matter 229/300 Energy 96/100 System Corruption 6% Temperature Cool (0) Movement Core (50) Location -7/Factory Parts ------- > --- POWER (1) -------- (None) > --- PROPULSION (2) --- (None) > --- UTILITY (7) ------ (None) > --- WEAPON (3) ------- (None) > --- INVENTORY (5) ---- Enhanced Nuclear Core Improved Cooling System Medium Storage Unit Improved Sensor Array Dynamic Insulation System Peak State ------------ > --- POWER ------------ (None) > --- PROPULSION ------- Advanced Treads > --- UTILITY ---------- Improved Medium Armor Plating Army-in-a-Box > --- WEAPON ----------- AWS/Thermal Gauss Rifle > --- INVENTORY -------- Enhanced Nuclear Core Improved Cooling System Medium Storage Unit Improved Sensor Array Dynamic Insulation System [Rating: 82] Favorites ----------- Power Heavy Ion Engine Engine Heavy Ion Engine Power Core Enhanced Nuclear Core Propulsion Advanced Treads Treads Advanced Treads Leg Aluminum Leg Wheel Wheel Utility Improved Sensor Array Device Improved Sensor Array Storage Medium Storage Unit Processor Visual Processing Unit Protection Improved Medium Armor Plating Weapon Gauss Rifle Energy Gun AWS/Thermal Energy Cannon Heavy Ion Cannon Ballistic Gun Gauss Rifle Ballistic Cannon Gauss Cannon Launcher Precision Grenade Launcher Build | -11 -10 -10 -10 -9 -8 -7 ------- Run | Yrd Mat Min Exi Min Mat Fac Slots Evolved 6 | . . . . . 4 2 Power . | . . . . . . . Propulsion . | . . . . . . . Utility 5 | . . . . . 4 1 Weapon 1 | . . . . . . 1 Parts Attached 71 | . . . 3 1 16 51 Power 6 | . . . . . 1 5 Engine 5 | . . . . . 1 4 Core 1 | . . . . . . 1 Reactor . | . . . . . . . Propulsion 14 | . . . 2 . 4 8 Treads 8 | . . . . . 3 5 Leg . | . . . . . . . Wheel 6 | . . . 2 . 1 3 Hover . | . . . . . . . Flight . | . . . . . . . Utility 25 | . . . 1 . 8 16 Device 15 | . . . . . 5 10 Storage 2 | . . . . . 2 . Processor 6 | . . . 1 . . 5 Hackware . | . . . . . . . Protection 2 | . . . . . 1 1 Artifact . | . . . . . . . Weapon 26 | . . . . 1 3 22 Energy Gun 9 | . . . . . 2 7 Energy Cannon 5 | . . . . . . 5 Ballistic Gun 5 | . . . . . 1 4 Ballistic Cannon 3 | . . . . . . 3 Launcher 4 | . . . . 1 . 3 Special Weapon . | . . . . . . . Impact Weapon . | . . . . . . . Slashing Weapon . | . . . . . . . Piercing Weapon . | . . . . . . . Special Melee Weapon . | . . . . . . . Unidentified Prototypes 2 | . . . . . 1 1 Parts Lost 19 | . . . . . 1 18 Power 2 | . . . . . . 2 Propulsion 4 | . . . . . . 4 Utility 5 | . . . . . . 5 Weapon 8 | . . . . . 1 7 Highest Loss Streak 3 | . . . . . 1 3 To Critical Strikes . | . . . . . . . Average Slot Usage (%) 76 | . 85 85 89 100 70 74 Engine 5 | . 14 14 14 14 9 3 Treads 7 | . . . . . 4 9 Leg 2 | . 28 28 16 . . . Wheel 4 | . . . 11 28 13 1 Device 17 | . . . . . 15 21 Storage 6 | . 14 14 14 14 6 4 Processor 7 | . . . 5 14 . 8 Protection 2 | . . . . . 4 2 Energy Gun 5 | . . . . . 4 6 Energy Cannon 2 | . . . . . . 3 Ballistic Gun 7 | . 28 28 28 14 9 3 Ballistic Cannon 1 | . . . . . . 2 Launcher 2 | . . . . 13 3 2 Naked Turns 2 | . . . . . . 2 Heaviest Build 102 | 11 11 11 11 14 94 102 Greatest Support 46 | 20 20 20 26 26 46 46 Greatest Overweight (x) 8 | . . . . 1 8 6 Average Overweight (x) 1 | . . . . . 2 2 Largest Inventory Capacity 10 | . 8 8 8 8 10 10 Average Capacity 8 | . 8 8 8 8 7 8 Most Carried 10 | . 7 7 8 8 8 10 Average Carried 7 | . 6 7 7 8 6 8 Final Capacity 10 | 8 8 8 8 8 10 5 Final Carried 8 | 6 7 7 8 8 8 5 Class Distribution -------------------- 45% | Scavenger-Skirmisher 22% | Mutant 21% | Tank 4% | Skirmisher 4% | Gunner Dominant Class ---------------- Mutant | -10/Materials Mutant | -10/Mines Mutant | -10/Exiles Mutant | -9/Mines Mutant | -8/Materials Scavenger-Skirmisher | -7/Factory Resources | -11 -10 -10 -10 -9 -8 -7 ----------- Run | Yrd Mat Min Exi Min Mat Fac Matter Collected 1629 | 200 . . . 34 223 1172 Remotely . | . . . . . . . Salvage Created 2840 | . . . . 23 377 2440 Parts 178 | . . . . 2 24 152 Haulers Intercepted 2 | . . . . . 1 1 Recyclers Shooed . | . . . . . . . Parts Field Recycled . | . . . . . . . Retrieved Matter . | . . . . . . . Parts Self-Destructed . | . . . . . . . Prevented . | . . . . . . . Kills | -11 -10 -10 -10 -9 -8 -7 ------- Run | Yrd Mat Min Exi Min Mat Fac Combat Hostiles Destroyed 60 | . . . . 3 11 46 Guns 26 | . . . . . 5 21 Cannons 10 | . . . . . . 10 AOE 24 | . . . . 3 6 15 Classes Destroyed 19 | . . . . 1 6 12 Worker 10 | . . . . . 1 9 Builder 8 | . . . . . . 8 Tunneler 2 | . . . . . 1 1 Hauler 2 | . . . . . 1 1 Recycler 2 | . . . . . . 2 Mechanic 2 | . . . . . . 2 Operator 3 | . . . . . . 3 Watcher 4 | . . . . . . 4 Swarmer 14 | . . . . 3 4 7 Grunt 25 | . . . . . 5 20 Brawler 2 | . . . . . . 2 Duelist 2 | . . . . . 1 1 Protector 2 | . . . . . . 2 Sentry 2 | . . . . . 1 1 Demolisher 1 | . . . . . . 1 Specialist 1 | . . . . . . 1 Hunter 6 | . . . . . . 6 Programmer 4 | . . . . . . 4 Heavy 1 | . . . . . . 1 Best Kill Streak 8 | . . . . 3 8 7 Combat Bots Only 8 | . . . . 3 8 6 Max Kills in Single Turn 6 | . . . . 3 4 6 Gunslinging . | . . . . . . . Exploded 5 | . . . . 3 4 5 Melee . | . . . . . . . Uniques/NPCs Destroyed . | . . . . . . . Combat | -11 -10 -10 -10 -9 -8 -7 -------- Run | Yrd Mat Min Exi Min Mat Fac Hostile Shots Fired 345 | . . . . 3 24 318 Missed 115 | . . . . 3 9 103 Damage Taken 4200 | . . . . 27 379 3794 Core 793 | . . . . . 78 715 Absorbed by Shields . | . . . . . . . Regen/Repaired (Parts) 150 | . . . . . . 150 Core Remaining (%) 95 | 100 . . . 100 85 . Volleys Fired 164 | . . 1 . 1 33 129 Largest 3 | . . 2 . 2 2 3 Hottest 166 | . . 40 . 53 79 166 Shots Fired 426 | . . 2 . 2 56 366 Gun 307 | . . 2 . 1 47 257 Cannon 94 | . . . . . . 94 Launcher 25 | . . . . 1 9 15 Special . | . . . . . . . Kinetic 133 | . . 2 . 1 26 104 Thermal 225 | . . . . . 21 204 Explosive 25 | . . . . 1 9 15 Electromagnetic 43 | . . . . . . 43 Robot Hit Streak 21 | . . . . . 7 21 Robot Miss Streak 4 | . . 2 . 4 3 4 Penetration Max . | . . . . . . . Secondary Targets 1 | . . . . . . 1 Max Gunslinging Chain 1 | . . . . . . 1 Autonomous 107 | . . . . . . 107 Shots Hit Robots 279 | . . . . . 35 244 Core Hits 175 | . 1 . . 3 25 146 Critical Kills . | . . . . . . . Critical Parts Destroyed 1 | . . . . . . 1 Critical Strikes 7 | . . . . . 1 6 Burn 3 | . . . . . 1 2 Destroy 1 | . . . . . . 1 Blast 3 | . . . . . . 3 Melee Attacks . | . . . . . . . Impact . | . . . . . . . Slashing . | . . . . . . . Piercing . | . . . . . . . Sneak Attacks . | . . . . . . . Combat Hostiles . | . . . . . . . Follow-up Attacks . | . . . . . . . Damage Inflicted 9772 | . 1 . . 153 1091 8527 Guns 4672 | . . . . . 400 4272 Cannons 1498 | . . . . . . 1498 Explosions 3519 | . . . . 141 684 2694 Melee . | . . . . . . . Ramming 83 | . 1 . . 12 7 63 Kinetic 1457 | . . . . . 199 1258 Thermal 5410 | . . . . . 201 5209 Explosive 2437 | . . . . 141 657 1639 Electromagnetic 385 | . . . . . 27 358 Impact . | . . . . . . . Slashing . | . . . . . . . Piercing . | . . . . . . . Highest Corruption 6 | . . . . . . 6 Average Corruption 4 | . . . . . . 4 Corruption Purged 5 | . . . . . . 5 Corruption Blocked . | . . . . . . . Effects 59 | . . . . . . 59 Message Errors 12 | . . . . . . 12 Matter Fused 14 | . . . . . . 14 Heat Flow Errors 10 | . . . . . . 10 Energy Discharges 9 | . . . . . . 9 Parts Rejected 1 | . . . . . . 1 Parts Fused 2 | . . . . . . 2 Data Loss (minor) 5 | . . . . . . 5 Data Loss (major) 3 | . . . . . . 3 Alerts 3 | . . . . . . 3 Overload Shots . | . . . . . . . Overflow Damage 210 | . . . . . 6 204 Projectiles 15 | . . . . . . 15 Explosions 195 | . . . . . 6 189 Melee . | . . . . . . . Knockbacks 3 | . . . . . . 3 Impact . | . . . . . . . Kinetic 3 | . . . . . . 3 Secondary . | . . . . . . . Self-Inflicted Damage 269 | . . . . 27 148 94 Shots 11 | . . . . 1 5 5 Rammed 25 | . . . . 2 2 21 Targets Rammed 28 | . 1 . . 2 2 23 Kicked 1 | . 1 . . . . . Crushed 2 | . . . . . . 2 Highest Temperature 267 | . . . . . 87 267 Average Temperature 44 | . . . . . 21 50 Received Heat Transfer 1131 | . . . . . 135 996 Effects 3 | . . . . . . 3 Interference 3 | . . . . . . 3 Siege Activations . | . . . . . . . Robots Corrupted . | . . . . . . . Combat Hostiles . | . . . . . . . Parts Fried 1 | . . . . . . 1 Impact Corruptions . | . . . . . . . Robots Melted . | . . . . . . . Combat Hostiles . | . . . . . . . Parts Melted 10 | . . . . . . 10 Heat Transferred 6383 | . . . . . 555 5828 Parts Sabotaged . | . . . . . . . Parts Stolen . | . . . . . . . Parts Stripped . | . . . . . . . Power Chain Reactions . | . . . . . . . Alert | -11 -10 -10 -10 -9 -8 -7 ------- Run | Yrd Mat Min Exi Min Mat Fac Peak Influence 3014 | . . . . 84 424 3014 Initial 130 | . . . . . 32 130 Average 659 | . . . . 70 236 795 Maximum Alert Level 5 | . . . . . 2 5 Low Security (%) 29 | . 100 100 . 100 38 19 Level 1 26 | . . . . . 50 26 Level 2 12 | . . . . . 11 13 Level 3 11 | . . . . . . 14 Level 4 5 | . . . . . . 7 Level 5 6 | . . . . . . 8 High Security 7 | . . . . . . 9 Max Security . | . . . . . . . Squads Dispatched 32 | . . . . . 2 30 Investigation 7 | . . . . . 1 6 Extermination 5 | . . . . . . 5 Reinforcement 9 | . . . . . 1 8 Assault 11 | . . . . . . 11 Garrison . | . . . . . . . Intercept . | . . . . . . . Searches Triggered . | . . . . . . . Construction Impeded 2 | . . . . . 1 1 Haulers Reinforced 2 | . . . . . . 2 Active Scanning Responses . | . . . . . . . Cargo Convoy Interrupts . | . . . . . . . Stealth | -11 -10 -10 -10 -9 -8 -7 --------- Run | Yrd Mat Min Exi Min Mat Fac Distress Signals 5 | . . . . . 2 3 Communications Jammed . | . . . . . . . Distress Signals . | . . . . . . . Times Spotted 130 | . . . . 3 14 113 Peak Tracking Total 11 | . . . . 3 11 11 Tactical Retreats 6 | . . . . . 1 5 Traps | -11 -10 -10 -10 -9 -8 -7 ------- Run | Yrd Mat Min Exi Min Mat Fac Traps Triggered 7 | . . . . . 1 6 Indirectly . | . . . . . . . Trap Hack Attempts . | . . . . . . . Triggered . | . . . . . . . Disarmed . | . . . . . . . Reprogrammed . | . . . . . . . Reused . | . . . . . . . Traps Extracted . | . . . . . . . Installed 4 | . . . . 4 . . Triggered . | . . . . . . . Machines | -11 -10 -10 -10 -9 -8 -7 ---------- Run | Yrd Mat Min Exi Min Mat Fac Machines Disabled 18 | . . . . . 1 17 Max in Single Turn 5 | . . . . . 1 5 Machines Repaired . | . . . . . . . Machines Dismantled . | . . . . . . . Machines Sabotaged . | . . . . . . . Overloaded Fab Kills . | . . . . . . . Hacking | -11 -10 -10 -10 -9 -8 -7 --------- Run | Yrd Mat Min Exi Min Mat Fac Machines Accessed 12 | . 1 . 2 . 2 7 Terminals 5 | . 1 . . . 2 2 Fabricators . | . . . . . . . Repair Stations 2 | . . . . . . 2 Recycling Units 1 | . . . . . . 1 Scanalyzers 1 | . . . . . . 1 Garrison Access 1 | . . . . . . 1 Total Hacks 36 | . 2 . 2 . 9 23 Successful 16 | . 1 . 2 . 4 9 Failed 20 | . 1 . . . 5 14 Catastrophic . | . . . . . . . Database Lockouts . | . . . . . . . Manual 10 | . . . 1 . 1 8 Terminals 19 | . 2 . . . 9 8 Fabricators . | . . . . . . . Repair Stations 8 | . . . . . . 8 Recycling Units 1 | . . . . . . 1 Scanalyzers 3 | . . . . . . 3 Garrison Access 3 | . . . . . . 3 Terminal Hacks 8 | . 1 . 2 . 3 2 Record 1 | . . . 1 . . . Prototype ID Bank 4 | . 1 . . . 2 1 Alert Level 1 | . . . . . . 1 Zone Layout 1 | . . . . . 1 . Derelict Proto ID Bank 1 | . . . 1 . . . Fabricator Hacks . | . . . . . . . Repair Station Hacks 3 | . . . . . . 3 Scan Component 2 | . . . . . . 2 Repair 1 | . . . . . . 1 Recycling Unit Hacks 1 | . . . . . . 1 Report Inventory 1 | . . . . . . 1 Scanalyzer 1 | . . . . . . 1 Insert Component 1 | . . . . . . 1 Garrison Access Hacks . | . . . . . . . Unauthorized Hacks 3 | . . . . . 1 2 Terminals 2 | . . . . . 1 1 Botnet 2 | . . . . . 1 1 Fabricators . | . . . . . . . Repair Stations . | . . . . . . . Recycling Units . | . . . . . . . Scanalyzers . | . . . . . . . Garrison Access 1 | . . . . . . 1 Intercept 1 | . . . . . . 1 Data Cores Recovered . | . . . . . . . Used . | . . . . . . . Hacking Detections 10 | . 1 . . . 2 7 Full Trace Events 7 | . . . . . 2 5 Feedback Events . | . . . . . . . Feedback Blocked . | . . . . . . . Robot Schematics Acquired . | . . . . . . . Robots Built . | . . . . . . . Authchips . | . . . . . . . Time . | . . . . . . . Total Robot Build Rating . | . . . . . . . Part Schematics Acquired . | . . . . . . . Parts Built . | . . . . . . . Authchips . | . . . . . . . Time . | . . . . . . . Total Part Build Rating . | . . . . . . . Parts Repaired 1 | . . . . . . 1 Time 38 | . . . . . . 38 Parts Recycled . | . . . . . . . Recycled Matter . | . . . . . . . Retrieved Matter . | . . . . . . . Retrieved Components . | . . . . . . . Parts Scanalyzed 1 | . . . . . . 1 Part Schematics Acquired . | . . . . . . . Parts Damaged 1 | . . . . . . 1 Bothacking | -11 -10 -10 -10 -9 -8 -7 ------------ Run | Yrd Mat Min Exi Min Mat Fac Used RIF Installer . | . . . . . . . Robots Hacked . | . . . . . . . Non-combat . | . . . . . . . Combat . | . . . . . . . Robot Hacks Applied . | . . . . . . . Relay Couplers Released 4 | . . . . . . 4 Programmers 4 | . . . . . . 4 Fabnet Peak Effective % . | . . . . . . . Robots Rewired . | . . . . . . . Allies Hacked . | . . . . . . . Hacks Repelled . | . . . . . . . Allies | -11 -10 -10 -10 -9 -8 -7 -------- Run | Yrd Mat Min Exi Min Mat Fac Total Allies . | . . . . . . . Largest Group . | . . . . . . . Highest-Rated Group . | . . . . . . . Highest-Rated Ally . | . . . . . . . Total Orders 3 | . . . . . 3 . EXPLORE 2 | . . . . . 2 . RETURN 1 | . . . . . 1 . Ally Attacks 392 | . . . . . 8 384 Total Damage 6950 | . . . . . 93 6857 Kills 66 | . . . . . 1 65 Allies Corrupted 2 | . . . . . . 2 Allies Melted . | . . . . . . . Intel | -11 -10 -10 -10 -9 -8 -7 ------- Run | Yrd Mat Min Exi Min Mat Fac Robot Analysis Total . | . . . . . . . Derelict Logs Recovered . | . . . . . . . Drone Launches 62 | . . . . . 30 32 Drone Recoveries 32 | . . . . . 30 2 Exploration | -11 -10 -10 -10 -9 -8 -7 ------------- Run | Yrd Mat Min Exi Min Mat Fac Turns Passed 4423 | . 123 57 279 188 507 3269 Spaces Moved 2130 | 1 101 46 248 195 259 1280 Core 11 | . . . . . . 11 Treads 911 | . . . . . 54 857 Legs 284 | 1 101 46 136 . . . Wheels 924 | . . . 112 195 205 412 Hover . | . . . . . . . Flight . | . . . . . . . Fastest Speed 50 | 120 120 120 90 90 80 50 Average Speed 171 | 120 120 120 106 91 127 211 Slowest Speed 465 | 120 120 120 120 95 240 465 Overloaded Moves . | . . . . . . . Propulsion Burnouts . | . . . . . . . Robots Hopped . | . . . . . . . Cave-ins Triggered . | . . . . . . . Exploration Rate (%) 31 | 1 17 19 60 53 28 39 Regions Visited 6 Branch Regions 3 Pre-discovered Areas 1 | . . . 1 . . . Known Exits Taken . | . . . . . . . Unknown Exits Taken 6 | 1 1 1 1 1 1 . Scrap Searched 1 | . . . . 1 . . Spaces Dug . | . . . . . . . Terrain Destroyed 230 | . . . . 14 69 147 Melee . | . . . . . . . Projectile 24 | . . . . . . 24 AOE 206 | . . . . 14 69 123 Terrain Rammed . | . . . . . . . Walls Destroyed . | . . . . . . . Machines Disabled . | . . . . . . . Actions | -11 -10 -10 -10 -9 -8 -7 --------- Run | Yrd Mat Min Exi Min Mat Fac Total 2576 | . 102 46 268 203 381 1576 Wait 114 | . . . 1 . 56 57 Move 2124 | . 100 45 247 194 258 1280 Hop . | . . . . . . . Pick Up 17 | . 1 . 6 . 3 7 Fast Attach 51 | . . . 1 1 12 37 Attach 10 | . . . 2 . 1 7 Detach 10 | . . . . . 3 7 Swap 10 | . . . . . 3 7 Drop 44 | . . . 11 1 10 22 Fire 164 | . . 1 . 1 33 129 Melee . | . . . . . . . Ram 4 | . . . . 2 2 . Kick 1 | . 1 . . . . . Crush 23 | . . . . . . 23 Escape Stasis . | . . . . . . . Rewire . | . . . . . . . Trap 4 | . . . . 4 . . Miscellaneous . | . . . . . . . Route ------- -11/Scrapyard -10/Materials -10/Mines -10/Exiles -9/Mines -8/Materials -7/Factory (discovered 1 exit: *Low) History --------- Turn | Location | Event 1 | -11/Scrapyard | Discovered new exit (range 0) 1 | -11/Scrapyard | Entered Materials 101 | -10/Materials | Discovered new exit (range 11) 124 | -10/Materials | Entered Mines 175 | -10/Mines | Deemed a non-threat by the Exiles lab entrance 175 | -10/Mines | Discovered new exit (range 5) 181 | -10/Mines | Entered Exiles 241 | -10/Exiles | Met 8R-AWN 259 | -10/Exiles | Met EX-HEX 290 | -10/Exiles | Met EX-BIN 306 | -10/Exiles | Aligned with FarCom system 307 | -10/Exiles | Given EX-Vault access code 318 | -10/Exiles | Build established: Mutant 338 | -10/Exiles | Opened EX-Vault 352 | -10/Exiles | Found AWS/Thermal 363 | -10/Exiles | Found Army-in-a-Box 365 | -10/Exiles | Found Modified TNC 387 | -10/Exiles | Warned to stay clear of 0b10 Research branches 412 | -10/Exiles | Met EX-DEC 422 | -10/Exiles | Learned location of Zion (-6) 449 | -10/Exiles | Discovered new exit (range 14) 460 | -10/Exiles | Stole three prototypes: Modified TNC, Army-in-a-Box, AWS/Thermal 460 | -10/Exiles | Entered Mines 484 | -9/Mines | Met a Derelict bent on vengeance 499 | -9/Mines | Found a hidden stash of uninstalled traps 638 | -9/Mines | Discovered new exit (range 11) 648 | -9/Mines | Entered Materials 648 | -8/Materials | Evolved 4 slots: Utility x4 808 | -8/Materials | Discovered new exit (range 36) 884 | -8/Materials | Destroyed 8 combat bots 1155 | -8/Materials | Entered Factory 1155 | -7/Factory | Evolved 2 slots: Utility x1, Weapon x1 1157 | -7/Factory | FarCom data flow suspended 1388 | -7/Factory | Lost 3 parts (2u1w) 1664 | -7/Factory | Build established: Scavenger-Skirmisher 1735 | -7/Factory | Discovered new exit (range 8) 1744 | -7/Factory | Identified exit to Lower Caves 2616 | -7/Factory | Repaired Adv. Treads 3155 | -7/Factory | First assault squad dispatched 3263 | -7/Factory | Core integrity fell below 50% 3309 | -7/Factory | Lost 3 parts (2p1w) 3409 | -7/Factory | Lost 7 allies 3772 | -7/Factory | Build established: Tank 4111 | -7/Factory | High security lockdown imminent 4191 | -7/Factory | High security lockdown engaged 4419 | -7/Factory | Core integrity fell below 20% 4423 | -7/Factory | Lost 19 allies 4424 | -7/Factory | Destroyed by X-57 Shotgunner with High-powered Shotgun Last Messages --------------- 04404_ G-47 Trooper destroyed. 04405_ Slug penetrates I-36 Angel. 04409_ Destroyed Com. Battery. 04409_ Slug penetrates I-36 Angel. 04409_ Com. Wheel melted. 04409_ Imp. Deuterium Engine melted. 04409_ I-36 Angel destroyed. 04410_ C-30 ARC bursts open, deploying its payload. 04410_ G-50 Soldier unfolds itself. 04410_ G-47 Trooper unfolds itself. 04410_ I-36 Angel unfolds itself. 04411_ Slug penetrates G-47 Trooper. 04415_ System corrupted: Matter fused (-8). 04415_ Slug penetrates G-47 Trooper. 04418_ Gauss Rifle destroyed. 04418_ Imp. Medium Armor Plating destroyed. 04419_ Com. Wheel destroyed. 04419_ Critical hit (Burn: +37). 04422_ The unstable cave ceiling collapses. 04422_ Discarded AWS/Thermal. Map ----- +----------------------------------------------------+ | | | ?????????????????????????????????????????????? | | ?????????????????????????????????????????????? | | ?????????????????????????????????????????????? | | ?????????????????????????????????????????????? | | ?????????????????????????????????????????????? | | ?????????????????????????????????????????????? | | ?????????????????????????????????????????????? | | ?????????????????????????????????????????????? | | ?????????????????????????????????????????????? | | ????#+####+#############+###?????????????????? | | ????# #?????????????????? | | ????# #?????????????????? | | ????# #?????????????????? | | ????# +?????????????????? | | ????# ^ #?????????????????? | | ######### ######### #?????????????????? | | # ! # ## ##### #########?????????? | | # + ! # # ????????? | | # # # # ; ????????? | | # # # ????????? | | # "" ### = % ????????? | | # "" # ????????? | | # """ # ????????? | | # """ ! = ????????? | | # """ # @ x ????????? | | # # # g ????????? | | # "" ! d % [ ????????? | | # "" # ggg ????????? | | # """ ### % ????????? | | # """ #?# i ????????? | | # """ #?# [ ????????? | | # #?# ! ?????????? | | # ! #?# ?????????? | | #########?# ! # ;;;;###??????????? | | ??????????# !%% ???????????? | | ??????????# *! ??????????? | | ??????????# % ! ???????????? | | ??????????# %= ??????????? | | ??????????# % * ??????????? | | ??????????# [%!%= ???????#### | | ??????????# =%= ??????## # | | ??????????# [%% ############+############ | | ??????????# =* ^ | | ??????????# % " ^ | | ??????????# ! " T %= | | ??????????# | | ??????????# | | ??????????# """ """ """%! !%* | | ??????????# """ """ """ !%=% | +----------------------------------------------------+ Best States ------------- Heat Dissipation 61 Energy Generation 17 Energy Capacity 300 Matter Stores 300 Matter Capacity 300 Sight Range 18 Robot Scan Range 15 Terrain Scan Range 16 Terrain Scan Density 10 Jamming Range 12 EM Shielding 2 Armor Coverage 225 Resistance: EM 15 Evasion (%) 55 Core Analysis 6 Recoil Reduction 2 Item Schematics ----------------- None Robot Schematics ------------------ None Fabricated ------------ Nothing Alien Tech Used ----------------- None Achievements -------------- None Challenges ------------ None Game ------ Seed GaussTiamatPit Manual? 0 Play Time 00:29:35 Cumulative 702.7 hours Start 2024.03.10 @ 19:03:44 End 2024.03.10 @ 19:37:03 Sessions 1 Manual Loads 0 Difficulty Rogue Special Mode None Game No. 736 Rogue 461 Adventurer 123 Explorer 152 Win Type - Total 26 Types 20/0/4/1/0/0/0/1/0 Lore% 83 Gallery% 91 Achievement% 76 Wizard Run 0 Options --------- Layout 0 ASCII 1 Keyboard 1 Movement Numpad Keybinds 0 Fullscreen 2 Font 18/Terminus Map View 76x50 Zoom Use 0% Tactical HUD 1 Map Filters NONE Filters NONE Steam 1 RUN: c6886419-dfb4-4852-b06a-b10ae311216b